Workbook

Sheet Cover
A13: Customer: | B13: Volvo
A15: Program: | B15: 2023 P6700
A17: Commodity: | B17: Floor Members subs (17 JPH)
A19: Plant: | B19: NPV
A21: Job # | B21: 10214-Q16225
A23: Date: | B23: 2023-06-30
A25: Cycle Time: | B25: 212

Sheet Sta 010 GEO
B2: Man and Machine Motions | AB2: Operator | CR2: =Cover!B13 -> Volvo
B3: PRELIMINARY TIMING ESTIMATES | AB3: Machine | CR3: =Cover!B15 -> 2023 P6700
AB4: Robot | CR4: =Cover!B17 -> Floor Members subs (17 JPH)
F5: =Q8-AP8 -> 9.72 | AB5: Operator Wait | CR5: =Cover!B19 -> NPV
A6: TOOL DESCRIPTION: | E6: Hours | F6: REQUIRED | Q6: TOTAL TIME | AP6: TOTAL TIME | BO6: TOTAL MILES WALKED | DC6: ROBOT | DW6: OPERATOR TIME | GE6: MACHINE
A7: =RIGHT(CELL("filename",D2),LEN(CELL("filename",D2))-FIND("]",CELL("filename",D2))) -> Sta 010 GEO | E7: /Shift | F7: JPH | Q7: AVAILABLE | AP7: UTILIZED | BO7: APPROX. 8 HR SHIFT | DC7: TIME | DW7: WORK | EQ7: WAIT | FK7: % UTIL. | GE7: TIME
E8: 7.4 | F8: =3600/Q8 -> 16.98113208 | Q8: 212 | AP8: 202.28 | BO8: 2.760720412 | DC8: 326.43 | DW8: 140 | EQ8: 72 | FK8: 66.03773499 | GE8: 53.33
A9: step | B9: STATION | C9: Cyl. | D9: WALK | F9: RUN | CW9: CYCLE TIME (seconds)
A10: # | B10: DESCRIPTION | C10: Num. | D10: DIST. | E10: SEC | F10: SEC | G10: 14 | Q10: =2*$G$10 -> 28 | AA10: =3*$G$10 -> 42 | AK10: =4*$G$10 -> 56 | AU10: =5*$G$10 -> 70 | BE10: =6*$G$10 -> 84 | BO10: =7*$G$10 -> 98 | BY10: =8*$G$10 -> 112 | CI10: =9*$G$10 -> 126 | CS10: =10*$G$10 -> 140 | DC10: =11*$G$10 -> 154 | DM10: =12*$G$10 -> 168 | DW10: =13*$G$10 -> 182 | EG10: =14*$G$10 -> 196 | EQ10: =15*$G$10 -> 210 | FA10: =16*$G$10 -> 224 | FK10: =17*$G$10 -> 238 | FU10: =18*$G$10 -> 252 | GE10: =19*$G$10 -> 266 | GO10: =20*$G$10 -> 280
A11: 1 | B11: Logic Delay | E11: 1.25 | F11: =E11 -> 1.25 | IP11: 5
A12: =A11+1 -> 2 | B12: OPER LOAD T2 XMBR | IP12: 2
A13: 3 | B13: Turntable Rotates | E13: 6 | F13: =F11+E13 -> 7.25 | IP13: 3
A14: 4 | B14: 010-T2-GEO X Clamps Open | E14: 1 | F14: =E14 -> 1 | IP14: 3
A15: 5 | B15: 010-T2-GEO Guide Cylinder Retracts | E15: 1 | F15: =F14+E15 -> 2 | IP15: 3
A16: 6 | B16: 010-T2-GEO X Clamp open | E16: 1 | F16: =F15+E16 -> 3 | IP16: 3
A17: 7 | B17: 010-T2-GEO Slide Retracts, Clamp Open | E17: 1 | F17: 4 | IP17: 3
A18: 8 | B18: 010-T2-GEO Tie Plate Slide Retracts | E18: 1 | F18: 5 | IP18: 3
A19: 9 | B19: 010-T2-GEO X Clamps open | E19: 1 | F19: 6 | IP19: 3
A20: 10 | B20: 010-T2-GEO Pin Extends | E20: 1 | F20: 7 | IP20: 3
A21: 11 | B21: Op1 walks to part bin | D21: 4 | E21: 1.2 | F21: 8.2 | IP21: 2 | IQ21: 2
A22: 12 | B22: Op1 places parts tool side | E22: 1.2 | F22: 9.4 | IP22: 2
A23: 13 | B23: Op1 unloads stage 1 welded REAR SUSP CMBR | E23: 2.4 | F23: 11.8 | IP23: 2
A24: 14 | B24: Op1 loads to stage 2 | E24: 2.8 | F24: =F23+E24 -> 14.6 | IP24: 2
A25: 15 | B25: Op1 unloads stage 1 LH RR CROSS ASM | E25: 1.8 | F25: =F24+E25 -> 16.4 | IP25: 2
A26: 16 | B26: Op1 loads to stage 2 REAR SUSP CMBR | E26: 1.8 | F26: 18.2 | IP26: 2
A27: 17 | B27: Op1 unloads stage 1 RH RR CROSS ASM | E27: 1.8 | F27: 20 | IP27: 2
A28: 18 | B28: Op1 loads to stage 2 REAR SUSP CMBR | E28: 1.8 | F28: 21.8 | IP28: 2
A29: 19 | B29: Op1 obtains parts from tool side | E29: 1.2 | F29: =F28+E29 -> 23 | IP29: 2
A30: 20 | B30: Op1 loads (2) parts (4899 / 4900) | E30: 2 | F30: =E30+F29 -> 25 | DY30: 2 | IP30: 2
A31: 21 | B31: Op1 walks to palm buttons | D31: 4 | E31: 1.2 | F31: =E31+F30 -> 26.2 | DY31: 2 | IP31: 2
A32: 22 | B32: Op1 hits palm button | E32: 1 | F32: 27.2 | IP32: 2
A33: 23 | B33: 010-T2-GEO Z Clamps Close | C33: UQ7.1, UQ7.2, UQ7.3, UQ10.1, UQ10.2, UQ10.3 | E33: 1 | F33: 28.2 | IP33: 3
A34: 24 | B34: 010-T2-GEO Guide Cylinder Extends | C34: UQ8.1, UQ11.1 | E34: 1 | F34: 29.2 | IP34: 3
A35: 25 | B35: Op1 obtains LH Vertical MNT ASM from tote | E35: 1.8 | F35: =E35+F32 -> 29 | DY35: 2 | IP35: 2
A36: 26 | B36: Op1 obtains RH Vertical MNT ASM from tote | E36: 1.8 | F36: =E36+F35 -> 30.8 | IP36: 2
A37: 27 | B37: Op1 walks to fixture | D37: 4 | E37: 1.2 | F37: 32 | IP37: 2 | IQ37: 2
A38: 28 | B38: Op1 loads LH Vertical MNT | E38: 1.8 | F38: 33.8 | IP38: 2 | IQ38: 2
A39: 29 | B39: Op1 loads RH Vertical MNT | E39: 1.8 | F39: =E39 +F38 -> 35.6 | IP39: 2
A40: 30 | B40: Op1 walks to staging table | D40: 4 | E40: 1.2 | F40: =E40 +F39 -> 36.8 | IP40: 2 | IQ40: 4
A41: 31 | B41: Op1 obtains (2) parts | E41: 3.6 | F41: 40.4 | IP41: 2 | IQ41: 4
A42: 32 | B42: Op1 obtains (1) part | E42: 1.8 | F42: 42.2 | IP42: 2
A43: 33 | B43: Op1 walks to fixture | D43: 4 | E43: 1.2 | F43: 43.4 | IP43: 2 | IQ43: 3
A44: =A43+1 -> 34 | B44: Op1 loads (2) parts (4240) | E44: 3 | F44: =E44+F43 -> 46.4 | IP44: 2
A45: 35 | B45: Op1 loads (1) parts (7931) | E45: 3 | F45: =E45+F44 -> 49.4 | IP45: 2
A46: 36 | B46: Op1 walks to part tote | D46: 6 | E46: 1.8 | F46: 51.2 | IP46: 2
A47: 37 | B47: Op1 obtains (2) parts | E47: 3.6 | F47: 54.8 | IP47: 2
A48: 38 | B48: Op1 walks to fixture | D48: 6 | E48: 1.8 | F48: 56.6 | IP48: 2
A49: 39 | B49: Op1 loads (2) parts (3814) | E49: 3.6 | F49: 60.2 | IP49: 2
A50: 40 | B50: Op1 walks to part bin | D50: 6 | E50: 1.8 | F50: 62 | IP50: 2
A51: 41 | B51: Op1 obtains (2) parts | E51: 3.6 | F51: 65.6 | IP51: 2
A52: 42 | B52: Op1 walks to fixture | D52: 6 | E52: 1.8 | F52: 67.4 | IP52: 2
A53: 43 | B53: Op1 loads (2) parts (4245) | E53: 3.6 | F53: 71 | IP53: 2
A54: 44 | B54: Op1 walks to palm buttons | D54: 4 | E54: 1.2 | F54: =E54+F53 -> 72.2 | IP54: 2
A55: 45 | B55: Op1 depress palm buttons | E55: 1 | F55: =E55+F54 -> 73.2 | IP55: 2
A56: 46 | B56: 010-T2-GEO X Clamps close | C56: UQ1.1, UQ1.2, UQ9.1, UQ9.2, UQ9.3, UQ9.4, UQ9.5, UQ12.1, UQ12.2, UQ12.3, UQ12.4, UQ12.5, UQ13.1, UQ13.2, UQ13.3, UQ13.4, UQ13.5, UQ13.6 | E56: 1 | F56: 74.2 | IP56: 3
A57: 47 | B57: 010-T2-GEO Tie Plate Slide Extends | C57: UQ3.1, UQ3.2, UQ3.3, UQ3.4 | E57: 1 | F57: 75.2 | IP57: 3
A58: 48 | B58: 010-T2-GEO Clamps Close | C58: UQ6.1, UQ6.2, UQ6.3, UQ6.4 | E58: 1 | F58: 76.2 | IP58: 3
A59: 49 | B59: 010-T2-GEO X Clamps Close | C59: UQ4.1, UQ4.2, UQ4.3, UQ4.4 | E59: 1 | F59: 77.2 | IP59: 3
A60: 50 | B60: 010-T2-GEO Cylinder Extends | C60: UQ5.1, UQ5.2 | E60: 1 | F60: 78.2 | IP60: 3
A61: =A60+1 -> 51 | B61: 010-T2-GEO X Clamps close | C61: UQ2.1, UQ2.2 | E61: 1 | F61: 79.2 | IP61: 3
A62: 52 | B62: Turntable Rotates (REF 1) | E62: 6 | F62: =F127 -> 108 | IP62: 3
A63: 53 | B63: OPER LOAD T1 LNGT | IP63: 2
A64: 54 | B64: 010-T1-GEO Clamps Open | C64: UQ5.1, UQ5.2, UQ5.3, UQ5.4, UQ6.1, UQ6.2, UQ6.3, UQ6.4, UQ6.5, UQ6.6 | E64: 1 | F64: =109.9+E64 -> 110.9 | IP64: 3
A65: =A64+1 -> 55 | B65: Op1 walks into fixture w/ parts | D65: 8 | E65: 2.4 | F65: =F64+E65 -> 113.3 | IP65: 2
A66: 56 | B66: Op1 loads (2) parts (4783) | E66: 3.6 | F66: =F65+E66 -> 116.9 | IP66: 2
A67: 57 | B67: Op1 unloads VERTICAL MNT LH ASM | E67: 1.8 | F67: =E67+F66 -> 118.7 | IP67: 2
A68: 58 | B68: Op1 unloads VERTICAL MNT RH ASM | E68: 1.8 | F68: =E68+F67 -> 120.5 | IP68: 2
A69: 59 | B69: Op1 places in tote on staging table | E69: 3 | F69: 123.5 | IP69: 2
A70: 60 | B70: Op1 walks to part tote | D70: 4 | E70: 1.2 | F70: =F69+E70 -> 124.7 | IP70: 2
A71: 61 | B71: Op1 obtains (2) parts | E71: 3.6 | F71: =F70+E71 -> 128.3 | IP71: 2
A72: 62 | B72: Op1 walks to fixture | D72: 4 | E72: 1.2 | F72: =E72+F71 -> 129.5 | IP72: 2
A73: 63 | B73: Op1 loads (2) parts (1559 / 5464) | E73: 3.6 | F73: 133.1 | IP73: 2
A74: 64 | B74: Op1 walks to part tote | D74: 4 | E74: 1.2 | F74: 134.3 | IP74: 2
A75: 65 | B75: Op1 obtains (2) parts | E75: 3.6 | F75: 137.9 | IP75: 2
A76: 66 | B76: Op1 walks to fixture | D76: 4 | E76: 1.2 | F76: 139.1 | IP76: 2
A77: 67 | B77: Op1 loads (2) parts (1559 / 5464) | E77: 3.6 | F77: 142.7 | IP77: 2
A78: 68 | B78: Op1 walks to palm buttons | D78: 4 | E78: 1.2 | F78: 143.9 | IP78: 2
A79: 69 | B79: Op1 depress palm buttons | E79: 1 | F79: 144.9 | IP79: 3
A80: 70 | B80: 010-T1-GEO Pin Extends | C80: UQ4.1, UQ4.2 | E80: 1 | F80: 145.9 | IP80: 3
A81: 71 | B81: 010-T1-GEO Y Clamps Close | C81: UQ5.1, UQ5.2, UQ5.3, UQ5.4 | E81: 1 | F81: 146.9 | IP81: 3
A82: 72 | B82: Op1 obtains (2) parts | E82: 3.6 | F82: =F79+E82 -> 148.5 | IP82: 2
A83: 73 | B83: Op1 walks to fixture | D83: 4 | E83: 1.2 | F83: =F82+E83 -> 149.7 | IP83: 2
A84: 74 | B84: Op1 loads (2) parts (4792 / 4789) | E84: 3.6 | F84: 153.3 | IP84: 2
A85: 75 | B85: Op1 walks to part bin | D85: 6 | E85: 1.8 | F85: 155.1 | IP85: 2
A86: 76 | B86: Op1 obtains (1) parts | E86: 3.6 | F86: 158.7 | IP86: 2
A87: 77 | B87: Op1 walks to fixture | D87: 6 | E87: 1.8 | F87: 160.5 | IP87: 2
A88: 78 | B88: Op1 loads (1) parts (4787) | E88: 3.6 | F88: 164.1 | IP88: 2
A89: 79 | B89: Op1 walks to part totes | D89: 4 | E89: 1.2 | F89: 165.3 | IP89: 2
A90: 80 | B90: Op1 obtains (2) parts | E90: 3.6 | F90: 168.9 | IP90: 2
A91: 81 | B91: Op1 walks to fixture | D91: 4 | E91: 1.2 | F91: 170.1 | IP91: 2
A92: 82 | B92: Op1 loads (2) parts (4791 / 4790) | E92: 3.6 | F92: 173.7 | IP92: 2
A93: 83 | B93: Op1 walks to part bin | D93: 6 | E93: 1.8 | F93: 175.5 | IP93: 2
A94: 84 | B94: Op1 obtains (1) parts | E94: 3.6 | F94: 179.1 | IP94: 2
A95: 85 | B95: Op1 walks to fixture | D95: 6 | E95: 1.8 | F95: 180.9 | IP95: 2
A96: 86 | B96: Op1 loads (1) parts (4770) | E96: 3.6 | F96: 184.5 | IP96: 2
A97: 87 | B97: Op1 walks to palm buttons | D97: 4 | E97: 1.2 | F97: =F96+E97 -> 185.7 | IP97: 2
A98: 88 | B98: Op1 depress palm buttons | E98: 1 | F98: =E98+F97 -> 186.7 | IP98: 3
A99: 89 | B99: 010-T1-GEO Guide Cynider Extends | C99: UQ1.1, UQ1.2, UQ1.3, UQ1.4 | E99: 1 | F99: =F98+E99 -> 187.7 | IP99: 3
A100: 90 | B100: 010-T1-GEO X Clamps Close | C100: UQ2.1, UQ2.2, UQ2.3 | E100: 1 | F100: =F99+E100 -> 188.7 | IP100: 3
A101: 91 | B101: 010-T1-GEO X Clamps Close | C101: UQ6.1, UQ6.2, UQ6.3, UQ6.4, UQ6.5, UQ6.6 | E101: 1 | F101: =F100+E101 -> 189.7 | IP101: 3
A102: 92 | B102: 010-T1-GEO Y Clamps Close | C102: UQ3.1, UQ3.2, UQ3.3, UQ3.4, UQ3.5, UQ3.6 | E102: 1 | F102: 190.7 | IP102: 3
IP103: 3
B105: 010-T1 GEO WELD RAILS | IP105: 2
A106: =A104+1 -> 1 | B106: Robots V01AR21 move in | E106: 0.36 | F106: =F13+E106 -> 7.61 | IP106: 4
A107: 2 | B107: Robots V01AR21 Geo welds (17) spots (RCS) and repositions | E107: 54.09 | F107: =E107+F106 -> 61.7 | IP107: 4
A108: 3 | B108: REPO SEQ21 Clamp Opens | C108: UQ3.1, UQ3.2, UQ3.3, UQ3.4 | E108: 2 | F108: =E108+F107 -> 63.7 | IP108: 3
A109: 4 | B109: Robots V01AR21 Geo welds (5) spots (RCS) and clears | E109: 16.57 | F109: 80.27 | IP109: 4
A110: 5 | B110: Robots V01AR22 move in | E110: 0.36 | F110: =E110+F13 -> 7.61 | IP110: 4
A111: 6 | B111: Robots V01AR22 Geo welds (21) spots (RCS) and repositions | E111: 73.28 | F111: 80.89 | IP111: 4
A112: 7 | B112: REPO SEQ25 Clamp opens | C112: UQ2.1, UQ2.2 | E112: 2 | F112: =E112+F111 -> 82.89 | IP112: 3
A113: 8 | B113: Robots V01AR22 Geo welds (1) spot (RCS) and clears | E113: 6.47 | F113: =F112+E113 -> 89.36 | IP113: 4
A114: 9 | B114: 010-T2 GEO WELD XMBR | IP114: 2
A115: 10 | B115: Robots V01AR21 move in | E115: 0.75 | F115: =F62+E115 -> 108.75 | IP115: 4
A116: =A115+1 -> 11 | B116: Robots V01AR21 Geo welds (17) spots (RCS) | E116: 74.95 | F116: =E116+F115 -> 183.7 | IP116: 4
A117: 12 | B117: Robots V01AR21 move out | E117: 0.01 | F117: =E117+F116 -> 183.71 | IP117: 4
A118: 13 | B118: Robots V01AR22 move in | E118: 0.75 | F118: =F115 -> 108.75 | IP118: 4
A119: 14 | B119: Robots V01AR22 Geo welds (17) spots (RCS) | E119: 77.41 | F119: =F115+E119 -> 186.16 | IP119: 4
A120: 15 | B120: Robots V01AR21 move out | E120: 0.01 | F120: =E120+F119 -> 186.17 | IP120: 4
A121: 16
A122: 17 | B122: 010-T2 GEO UNLOAD | IP122: 2
A123: 18 | B123: 010-T2 Geo Clamp Open | E123: 2 | F123: =F113+E123 -> 91.36 | IP123: 3
A124: 19 | B124: Robot V01AR41-MH1 moves to pick | E124: 4.17 | F124: =F123+E124 -> 95.53 | IP124: 4
A125: 20 | B125: Robot V01AR41-MH1 Clamps Close | C125: UQ1.1, UQ1.2, UQ1.3, UQ1.4 | E125: 1 | F125: =F124+E125 -> 96.53 | IP125: 3
A126: 21 | B126: Robot V01AR41-MH1 moves to PED | E126: 5.47 | F126: =F125+E126 -> 102 | IP126: 4
A127: 22 | B127: Turntable rotates (REF 2) | E127: 6 | F127: =F126+E127 -> 108 | IP127: 3
A128: 23 | B128: 010-T1 GEO UNLOAD | IP128: 2
A129: 24 | B129: 010-T1 Geo Clamp Open | E129: 2.33 | F129: =F120+E129 -> 188.5 | IP129: 3
A130: 25 | B130: Robot V01AR41-MH1 moves to pick | E130: 6.07 | F130: =F129+E130 -> 194.57 | IP130: 4
A131: 26 | B131: Robot V01AR41-MH1 Clamps Close | C131: UQ2.1, UQ2.2, UQ2.3 | E131: 2 | F131: =F130+E131 -> 196.57 | IP131: 3
A132: 27 | B132: Robot V01AR41-MH1 move to Ped | E132: 5.71 | F132: =F131+E132 -> 202.28 | IP132: 4
IQ134: 2
B135: Total Cycle Time | F135: =MAX(F64:F134) -> 202.28
B136: Estimated Walk Total | D136: =SUM(D103:D135) -> 0 | IQ136: 2
B137: Jobs Per Hour | F137: =SUM(3600/F135) -> 17.79711291

Sheet Sta 010-PED-R03
B2: Man and Machine Motions | AB2: Operator | CR2: =Cover!B13 -> Volvo
B3: PRELIMINARY TIMING ESTIMATES | AB3: Machine | CR3: =Cover!B15 -> 2023 P6700
AB4: Robot | CR4: =Cover!B17 -> Floor Members subs (17 JPH)
F5: =Q8-AP8 -> 32.7 | AB5: Operator Wait | CR5: =Cover!B19 -> NPV
A6: TOOL DESCRIPTION: | E6: Hours | F6: REQUIRED | Q6: TOTAL TIME | AP6: TOTAL TIME | BO6: TOTAL MILES WALKED | DC6: ROBOT | DW6: OPERATOR TIME | GE6: MACHINE
A7: =RIGHT(CELL("filename",D2),LEN(CELL("filename",D2))-FIND("]",CELL("filename",D2))) -> Sta 010-PED-R03 | E7: /Shift | F7: JPH | Q7: AVAILABLE | AP7: UTILIZED | BO7: APPROX. 8 HR SHIFT | DC7: TIME | DW7: WORK | EQ7: WAIT | FK7: % UTIL. | GE7: TIME
E8: 7.4 | F8: =3600/Q8 -> 16.98113208 | Q8: 212 | AP8: 179.3 | BO8: N/A | DC8: 144.83 | DW8: N/A | EQ8: N/A | FK8: N/A | GE8: 10.33
A9: step | B9: STATION | C9: Cyl. | D9: WALK | F9: RUN | CW9: CYCLE TIME (seconds)
A10: # | B10: DESCRIPTION | C10: Num. | D10: DIST. | E10: SEC | F10: SEC | G10: 14 | Q10: =2*$G$10 -> 28 | AA10: =3*$G$10 -> 42 | AK10: =4*$G$10 -> 56 | AU10: =5*$G$10 -> 70 | BE10: =6*$G$10 -> 84 | BO10: =7*$G$10 -> 98 | BY10: =8*$G$10 -> 112 | CI10: =9*$G$10 -> 126 | CS10: =10*$G$10 -> 140 | DC10: =11*$G$10 -> 154 | DM10: =12*$G$10 -> 168 | DW10: =13*$G$10 -> 182 | EG10: =14*$G$10 -> 196 | EQ10: =15*$G$10 -> 210 | FA10: =16*$G$10 -> 224 | FK10: =17*$G$10 -> 238 | FU10: =18*$G$10 -> 252 | GE10: =19*$G$10 -> 266 | GO10: =20*$G$10 -> 280
A11: 1 | B11: Logic Delay | E11: 1.25 | F11: =E11 -> 1.25 | IP11: 5
A12: =A11+1 -> 2 | B12: PED 010-T1 WELD RAILS | IP12: 2
A13: 3 | B13: 010-T2 Geo Clamp Open | E13: 2 | F13: =F11+E13 -> 3.25 | IP13: 3
A14: 4 | B14: Robot V01AR41-MH1 moves to pick | E14: 5.95 | F14: =F13+E14 -> 9.2 | IP14: 4
A15: 5 | B15: Robot V01AR41-MH1 Clamps Close | C15: UQ1.1, UQ1.2, UQ1.3, UQ1.4 | E15: 1 | F15: =F14+E15 -> 10.2 | IP15: 3
A16: 6 | B16: Robot V01AR41-MH1 moves to PED | E16: 5.47 | F16: =F15+E16 -> 15.67 | IP16: 4
A17: 7 | B17: PED weld 16 spots (RCS) | E17: 43.84 | F17: =F16+E17 -> 59.51 | IP17: 4
A18: 8 | B18: Robot V01AR41-MH1 moves to drop | E18: 4.56 | F18: =F17+E18 -> 64.07 | IP18: 4
A19: 9 | B19: Robot V01AR41-MH1 Clamps Open | C19: UQ1.1, UQ1.2, UQ1.3, UQ1.4 | E19: 1 | F19: 65.07 | IP19: 3
A20: 10 | B20: Robot V01AR41-MH1 clears to home | E20: 5.88 | F20: 70.95 | IP20: 4
A21: 11 | B21: Robot V01AR41-MH1 Waits | E21: 22.89 | F21: 93.84 | IP21: 5
A22: 12 | B22: PED 010-T2 WELD XMBR | IP22: 2
A23: 13 | B23: 010-T1 Geo Clamp Open | E23: 2.33 | F23: =F21+E23 -> 96.17 | IP23: 3
A24: 14 | B24: Robot V01AR41-MH1 moves to pick | E24: 6.07 | F24: =F23+E24 -> 102.24 | IP24: 4
A25: 15 | B25: Robot V01AR41-MH1 Clamps Close | C25: UQ2.1, UQ2.2, UQ2.3 | E25: 2 | F25: =F24+E25 -> 104.24 | IP25: 3
A26: 16 | B26: Robot V01AR41-MH1 move to Ped | E26: 5.71 | F26: =F25+E26 -> 109.95 | IP26: 4
A27: 17 | B27: PED weld (RCS) | E27: 57.51 | F27: =F26+E27 -> 167.46 | IP27: 4
A28: 18 | B28: Robot V01AR41-MH1 moves to drop | E28: 3.94 | F28: 171.4 | IP28: 4
A29: 19 | B29: Robot V01AR41-MH1 Clamps Open | C29: UQ2.1, UQ2.2, UQ2.3 | E29: 2 | F29: 173.4 | IP29: 3
A30: 20 | B30: Robot V01AR41-MH1 clears to home | E30: 5.9 | F30: 179.3 | IP30: 4
IP31: 2
IQ33: 2
B34: Total Cycle Time | F34: =MAX(F12:F33) -> 179.3
B35: Estimated Walk Total | D35: =SUM(D12:D34) -> 0 | IQ35: 2
B36: Jobs Per Hour | F36: =SUM(3600/F34) -> 20.07808143

Sheet Sta 020-PED
B2: Man and Machine Motions | AB2: Operator | CR2: =Cover!B13 -> Volvo
B3: PRELIMINARY TIMING ESTIMATES | AB3: Machine | CR3: =Cover!B15 -> 2023 P6700
AB4: Robot | CR4: =Cover!B17 -> Floor Members subs (17 JPH)
F5: =Q8-AP8 -> 13.08 | AB5: Operator Wait | CR5: =Cover!B19 -> NPV
A6: TOOL DESCRIPTION: | E6: Hours | F6: REQUIRED | Q6: TOTAL TIME | AP6: TOTAL TIME | BO6: TOTAL MILES WALKED | DC6: ROBOT | DW6: OPERATOR TIME | GE6: MACHINE
A7: =RIGHT(CELL("filename",D2),LEN(CELL("filename",D2))-FIND("]",CELL("filename",D2))) -> Sta 020-PED | E7: /Shift | F7: JPH | Q7: AVAILABLE | AP7: UTILIZED | BO7: APPROX. 8 HR SHIFT | DC7: TIME | DW7: WORK | EQ7: WAIT | FK7: % UTIL. | GE7: TIME
E8: 7.4 | F8: =3600/Q8 -> 16.98113208 | Q8: 212 | AP8: 198.92 | BO8: N/A | DC8: 193.67 | DW8: N/A | EQ8: N/A | FK8: N/A | GE8: 4
A9: step | B9: STATION | C9: Cyl. | D9: WALK | F9: RUN | CW9: CYCLE TIME (seconds)
A10: # | B10: DESCRIPTION | C10: Num. | D10: DIST. | E10: SEC | F10: SEC | G10: 14 | Q10: =2*$G$10 -> 28 | AA10: =3*$G$10 -> 42 | AK10: =4*$G$10 -> 56 | AU10: =5*$G$10 -> 70 | BE10: =6*$G$10 -> 84 | BO10: =7*$G$10 -> 98 | BY10: =8*$G$10 -> 112 | CI10: =9*$G$10 -> 126 | CS10: =10*$G$10 -> 140 | DC10: =11*$G$10 -> 154 | DM10: =12*$G$10 -> 168 | DW10: =13*$G$10 -> 182 | EG10: =14*$G$10 -> 196 | EQ10: =15*$G$10 -> 210 | FA10: =16*$G$10 -> 224 | FK10: =17*$G$10 -> 238 | FU10: =18*$G$10 -> 252 | GE10: =19*$G$10 -> 266 | GO10: =20*$G$10 -> 280
A11: 1 | B11: Logic Delay | E11: 1.25 | F11: =E11 -> 1.25 | IP11: 5
A12: =A11+1 -> 2 | B12: PED 020-AR42 WELD RAILS | IP12: 2
A13: 3 | B13: Robot V01AR42-MH1 moves to pick | E13: 2.52 | F13: =F11+E13 -> 3.77 | IP13: 4
A14: 4 | B14: Robot V01AR42-MH1 Clamps Close | C14: UQ1.1, UQ1.2, UQ1.3, UQ1.4 | E14: 1 | F14: =F13+E14 -> 4.77 | IP14: 3
A15: 5 | B15: Robot V01AR42-MH1 moves to PED | E15: 2.13 | F15: =F14+E15 -> 6.9 | IP15: 4
A16: 6 | B16: PED weld 16 spots (RCS) | E16: 50.89 | F16: =F15+E16 -> 57.79 | IP16: 4
A17: 7 | B17: Robot V01AR42-MH1 moves to drop | E17: 3.89 | F17: =F16+E17 -> 61.68 | IP17: 4
A18: 8 | B18: Robot V01AR42-MH1 Clamps Open | C18: UQ1.1, UQ1.2, UQ1.3, UQ1.4 | E18: 1 | F18: 62.68 | IP18: 3
A19: 9 | B19: Robot V01AR42-MH1 clears to home | E19: 3.99 | F19: 66.67 | IP19: 4
A20: 10 | B20: PED 010-AR42 WELD XMBR | IP20: 2
A21: 11 | B21: Robot V01AR42-MH1 moves to pick | E21: 4.21 | F21: =F19+E21 -> 70.88 | IP21: 4
A22: 12 | B22: Robot V01AR421-MH1 Clamps Close | C22: UQ2.1, UQ2.2, UQ2.3 | E22: 1 | F22: =F21+E22 -> 71.88 | IP22: 3
A23: 13 | B23: Robot V01AR42-MH1 move to Ped | E23: 22.7 | F23: =F22+E23 -> 94.58 | IP23: 4
A24: 14 | B24: PED weld (RCS) | E24: 95.06 | F24: =F23+E24 -> 189.64 | IP24: 4
A25: 15 | B25: Robot V01AR42-MH1 moves to drop | E25: 4.16 | F25: 193.8 | IP25: 4
A26: 16 | B26: Robot V01AR42-MH1 Clamps Open | C26: UQ2.1, UQ2.2, UQ2.3 | E26: 1 | F26: 194.8 | IP26: 3
A27: 17 | B27: Robot V01AR42-MH1 clears to home | E27: 4.12 | F27: 198.92 | IP27: 4
IP28: 2
IQ30: 2
B31: Total Cycle Time | F31: =MAX(F12:F30) -> 198.92
B32: Estimated Walk Total | D32: =SUM(D12:D31) -> 0 | IQ32: 2
B33: Jobs Per Hour | F33: =SUM(3600/F31) -> 18.09772773

Sheet Sta GEO 030
B2: Man and Machine Motions | AB2: Operator | CR2: =Cover!B13 -> Volvo
B3: PRELIMINARY TIMING ESTIMATES | AB3: Machine | CR3: =Cover!B15 -> 2023 P6700
AB4: Robot | CR4: =Cover!B17 -> Floor Members subs (17 JPH)
F5: =Q8-AP8 -> 40.62 | AB5: Operator Wait | CR5: =Cover!B19 -> NPV
A6: TOOL DESCRIPTION: | E6: Hours | F6: REQUIRED | Q6: TOTAL TIME | AP6: TOTAL TIME | BO6: TOTAL MILES WALKED | DC6: ROBOT | DW6: OPERATOR TIME | GE6: MACHINE
A7: =RIGHT(CELL("filename",D2),LEN(CELL("filename",D2))-FIND("]",CELL("filename",D2))) -> Sta GEO 030 | E7: /Shift | F7: JPH | Q7: AVAILABLE | AP7: UTILIZED | BO7: APPROX. 8 HR SHIFT | DC7: TIME | DW7: WORK | EQ7: WAIT | FK7: % UTIL. | GE7: TIME
E8: 7.4 | F8: =3600/Q8 -> 16.98113208 | Q8: 212 | AP8: 171.38 | BO8: N/A | DC8: 267.68 | DW8: N/A | EQ8: N/A | FK8: N/A | GE8: 45.5
A9: step | B9: STATION | C9: Cyl. | D9: WALK | F9: RUN | CW9: CYCLE TIME (seconds)
A10: # | B10: DESCRIPTION | C10: Num. | D10: DIST. | E10: SEC | F10: SEC | G10: 14 | Q10: =2*$G$10 -> 28 | AA10: =3*$G$10 -> 42 | AK10: =4*$G$10 -> 56 | AU10: =5*$G$10 -> 70 | BE10: =6*$G$10 -> 84 | BO10: =7*$G$10 -> 98 | BY10: =8*$G$10 -> 112 | CI10: =9*$G$10 -> 126 | CS10: =10*$G$10 -> 140 | DC10: =11*$G$10 -> 154 | DM10: =12*$G$10 -> 168 | DW10: =13*$G$10 -> 182 | EG10: =14*$G$10 -> 196 | EQ10: =15*$G$10 -> 210 | FA10: =16*$G$10 -> 224 | FK10: =17*$G$10 -> 238 | FU10: =18*$G$10 -> 252 | GE10: =19*$G$10 -> 266 | GO10: =20*$G$10 -> 280
A11: 1 | B11: Logic Delay | E11: 1.25 | F11: =E11 -> 1.25 | IP11: 5
A12: =A11+1 -> 2 | B12: 30 GEO WELD RAILS | IP12: 2
A13: 3 | B13: Robot V01AR42-MH1 moves to drop | E13: 3.89 | F13: =F11+E13 -> 5.14 | IP13: 4
A14: 4 | B14: Robot V01AR42-MH1 Clamps Open | C14: UQ1.1, UQ1.2, UQ1.3, UQ1.4 | E14: 1 | F14: =F13+E14 -> 6.14 | IP14: 3
A15: 5 | B15: Robot V01AR42-MH1 clears to home | E15: 3.99 | F15: 10.13 | IP15: 4
A16: 6 | B16: 030 MIG WELD RAILS | IP16: 2
A17: 7 | B17: 030-T1 Clamps Close | C17: UQ1.1, UQ1.2, UQ1.3, UQ1.4, UQ2.1, UQ2.2, UQ2.3, UQ2.4, UQ2.5, UQ2.6, UQ3.1, UQ3.2, UQ3.3, UQ3.4, UQ3.5, UQ3.6 | E17: 1 | F17: =F15+E17 -> 11.13 | IP17: 3
A18: 8 | B18: 030-TT Rotates to pos 20° | E18: 2 | F18: 13.13 | IP18: 3
A19: 9 | B19: Robot V01AR61 home to pounce | E19: 0.68 | F19: 13.81 | IP19: 4
A20: 10 | B20: Robot V01AR61 home to pounce | E20: 0.68 | F20: 14.49 | IP20: 4
A21: 11 | B21: Robot V01AR61 MIG Weld 8 (RCS) | E21: 13.88 | F21: 28.37 | IP21: 4
A22: 12 | B22: Robot V01AR62 MIG Weld 8 (RCS) | E22: 14.24 | F22: =F20+E22 -> 28.73 | IP22: 4
A23: 13 | B23: 030-TT Rotates to pos 90° | E23: 2 | F23: =F22+E23 -> 30.73 | IP23: 3
A24: 14 | B24: Robot V01AR61 MIG Weld 4 (RCS) | E24: 28.9 | F24: =F23+E24 -> 59.63 | IP24: 4
A25: 15 | B25: Robot V01AR62 MIG Weld 4 (RCS) | E25: 28.2 | F25: =F23+E25 -> 58.93 | IP25: 4
A26: 16 | B26: 030-TT Rotates to pos -70° | E26: 3 | F26: =F24+E26 -> 62.63 | IP26: 3
A27: 17 | B27: Robot V01AR61 MIG Weld 4 (RCS) | E27: 29.36 | F27: =F26+E27 -> 91.99 | IP27: 4
A28: 18 | B28: Robot V01AR62 MIG Weld 4 (RCS) | E28: 30.28 | F28: =F26+E28 -> 92.91 | IP28: 4
A29: 19 | B29: Robot V01AR61 RTH | E29: 0.65 | F29: =F27+E29 -> 92.64 | IP29: 4
A30: 20 | B30: Robot V01AR62 RTH | E30: 0.65 | F30: =F28+E30 -> 93.56 | IP30: 4
A31: 21 | B31: 030-TT Rotates to pos 45° | E31: 3 | F31: =F28+E31 -> 95.91 | IP31: 3
A32: 22 | B32: 030-TT Rotates 180° | E32: 6 | F32: =F28+E32 -> 98.91 | IP32: 3
A33: 23 | B33: 030-T1 Clamps 0pen | C33: UQ1.1, UQ1.2, UQ1.3, UQ1.4, UQ2.1, UQ2.2, UQ2.3, UQ2.4, UQ2.5, UQ2.6, UQ3.1, UQ3.2, UQ3.3, UQ3.4, UQ3.5, UQ3.6 | E33: 1 | F33: =F32+E33 -> 99.91 | IP33: 3
A34: 24 | B34: AR11 REMOVE RAILS | IP34: 2
A35: 25 | B35: Robot V01AR11 moves to pick Sta 030-T1 | E35: 3 | F35: =F33+E35 -> 102.91 | IP35: 4
A36: 26 | B36: Robot V01AR11 clamps close | C36: UQ2.1 UQ2.2 UQ2.3 UQ2.4 | E36: 1 | F36: =F35+E36 -> 103.91 | IP36: 3
A37: 27 | B37: Robot V01AR11 moves clear | E37: 1 | F37: =F36+E37 -> 104.91 | IP37: 4
A38: 28 | B38: 0AR42 LOADS XMBR | IP38: 2
A39: 29 | B39: Robot V01AR42-MH1 moves to drop | E39: 4.16 | F39: =F32+E39 -> 103.07 | IP39: 4
A40: 30 | B40: Robot V01AR42-MH1 Clamps Open | C40: UQ2.1, UQ2.2, UQ2.3 | E40: 1 | F40: =F39+E40 -> 104.07 | IP40: 3
A41: 31 | B41: Robot V01AR42-MH1 clears to home | E41: 4.12 | F41: 108.19 | IP41: 4
A42: 32 | B42: 030 MIG WELD XMBR | IP42: 2
A43: 33 | B43: 030-T2 Clamps Close | C43: UQ1.1, UQ1.2, UQ1.3, UQ1.4, UQ1.5, UQ1.6, UQ2.1, UQ2.2, UQ2.3, UQ2.4, UQ3.1, UQ3.2, UQ3.3, UQ3.4 | E43: 1 | F43: =F41+E43 -> 109.19 | IP43: 3
A44: =A43+1 -> 34 | B44: 030-TT Rotates to pos -70° | E44: 3 | F44: =E44 +F43 -> 112.19 | IP44: 3
A45: 35 | B45: Robot V01AR61 home to pounce | E45: 0.68 | F45: =E45 +F44 -> 112.87 | IP45: 4
A46: 36 | B46: Robot V01AR62 home to pounce | E46: 0.68 | F46: 113.55 | IP46: 4
A47: 37 | B47: Robot V01AR61 MIG welds 3 (RCS) | E47: 12.46 | F47: 126.01 | IP47: 4
A48: 38 | B48: Robot V01AR62 MIG welds 3 (RCS) | E48: 12.46 | F48: =E48 +F46 -> 126.01 | IP48: 4
A49: 39 | B49: 030-TT Rotates to pos -100° | E49: 3 | F49: 129.01 | IP49: 3
A50: 40 | B50: Robot V01AR61 MIG welds 1 (RCS) | E50: 5.85 | F50: 134.86 | IP50: 4
A51: 41 | B51: Robot V01AR62 MIG welds 1 (RCS) | E51: 5.85 | F51: =E51 +F49 -> 134.86 | IP51: 4
A52: 42 | B52: 030-TT Rotates to pos 0° | E52: 3.5 | F52: =E52 +F50 -> 138.36 | IP52: 3
A53: 43 | B53: Robot V01AR61 MIG welds 2 (RCS) | E53: 7.67 | F53: 142.53 | IP53: 4
A54: 44 | B54: Robot V01AR62 MIG welds 2 (RCS) | E54: 7.69 | F54: =E54 +F51 -> 142.55 | IP54: 4
A55: 45 | B55: 030-TT Rotates to pos 90° | E55: 3 | F55: =E55 +F54 -> 145.55 | IP55: 3
A56: 46 | B56: Robot V01AR61 MIG welds 3 (RCS) | E56: 13.18 | F56: =E56 +F55 -> 158.73 | IP56: 4
A57: 47 | B57: Robot V01AR62 MIG welds 3 (RCS) | E57: 13.18 | F57: 158.73 | IP57: 4
A58: 48 | B58: Robot V01AR61 RTH | E58: 0.65 | F58: 159.38 | IP58: 4
A59: 49 | B59: Robot V01AR62 RTH | E59: 0.65 | F59: =E59 +F57 -> 159.38 | IP59: 4
A60: 50 | B60: Robot AR61 & AR62 Tourch Ream | E60: 12 | F60: =E60+F59 -> 171.38 | IP60: 4
A61: =A59+1 -> 50 | B61: 030-TT Rotates 180° | E61: 6 | F61: =F59+E61 -> 165.38 | IP61: 3
A62: =A59+1 -> 50 | B62: 030-T2 Clamps Open | C62: UQ1.1, UQ1.2, UQ1.3, UQ1.4, UQ1.5, UQ1.6, UQ2.1, UQ2.2, UQ2.3, UQ2.4, UQ3.1, UQ3.2, UQ3.3, UQ3.4 | E62: 1 | F62: =E62 -> 1 | IP62: 3
A63: =A62+1 -> 51 | B63: 030-TT Rotates to pos 45° | E63: 3 | F63: =F62+E63 -> 4 | IP63: 3
A64: 52 | B64: OPER UNLOAD XMBR | IP64: 2
A65: 53 | B65: Robot V01AR11 moves to pick 030-T2 | E65: 3 | F65: =F63 +E65 -> 7 | IP65: 4
A66: 54 | B66: Robot V01AR11 clamps close | C66: UQ3.1 UQ3.2 UQ3.3 | E66: 1 | F66: =F65+E66 -> 8 | IP66: 3
A67: 55 | B67: Robot V01AR11 moves clear | E67: 1 | F67: =F66+E67 -> 9 | IP67: 4
A68: 56 | B68: Robot V01AR11 Rotate 180°. | E68: 3 | F68: 12 | IP68: 4
IQ70: 2
B71: Total Cycle Time | F71: =MAX(F12:F70) -> 171.38
B72: Estimated Walk Total | D72: =SUM(D12:D71) -> 0 | IQ72: 2
B73: Jobs Per Hour | F73: =SUM(3600/F71) -> 21.00595169

Sheet Sta 040 Pierce
B2: Man and Machine Motions | AB2: Operator | CR2: =Cover!B13 -> Volvo
B3: PRELIMINARY TIMING ESTIMATES | AB3: Machine | CR3: =Cover!B15 -> 2023 P6700
AB4: Robot | CR4: =Cover!B17 -> Floor Members subs (17 JPH)
F5: =Q8-AP8 -> 99 | AB5: Operator Wait | CR5: =Cover!B19 -> NPV
A6: TOOL DESCRIPTION: | E6: Hours | F6: REQUIRED | Q6: TOTAL TIME | AP6: TOTAL TIME | BO6: TOTAL MILES WALKED | DC6: ROBOT | DW6: OPERATOR TIME | GE6: MACHINE
A7: =RIGHT(CELL("filename",D2),LEN(CELL("filename",D2))-FIND("]",CELL("filename",D2))) -> Sta 040 Pierce | E7: /Shift | F7: JPH | Q7: AVAILABLE | AP7: UTILIZED | BO7: APPROX. 8 HR SHIFT | DC7: TIME | DW7: WORK | EQ7: WAIT | FK7: % UTIL. | GE7: TIME
E8: 7.4 | F8: =3600/Q8 -> 16.98113208 | Q8: 212 | AP8: 113 | BO8: 1.570754717 | DC8: 26 | DW8: 42.4 | EQ8: 169.6 | FK8: 20 | GE8: 14
A9: step | B9: STATION | C9: Cyl. | D9: WALK | F9: RUN | CW9: CYCLE TIME (seconds)
A10: # | B10: DESCRIPTION | C10: Num. | D10: DIST. | E10: SEC | F10: SEC | G10: 14 | Q10: =2*$G$10 -> 28 | AA10: =3*$G$10 -> 42 | AK10: =4*$G$10 -> 56 | AU10: =5*$G$10 -> 70 | BE10: =6*$G$10 -> 84 | BO10: =7*$G$10 -> 98 | BY10: =8*$G$10 -> 112 | CI10: =9*$G$10 -> 126 | CS10: =10*$G$10 -> 140 | DC10: =11*$G$10 -> 154 | DM10: =12*$G$10 -> 168 | DW10: =13*$G$10 -> 182 | EG10: =14*$G$10 -> 196 | EQ10: =15*$G$10 -> 210 | FA10: =16*$G$10 -> 224 | FK10: =17*$G$10 -> 238 | FU10: =18*$G$10 -> 252 | GE10: =19*$G$10 -> 266 | GO10: =20*$G$10 -> 280
A11: 1 | B11: Logic Delay | E11: 1.25 | F11: =E11 -> 1.25 | IP11: 5
A12: =A11+1 -> 2 | B12: OPER LOAD T1 LNGT | IP12: 2
A13: 3 | B13: OPER UNLOAD RAILS | IP13: 2
A14: 4 | B14: Robot V01AR11 moves to pick Sta 030-T1 | E14: 3 | F14: =F11+E14 -> 4.25 | IP14: 4
A15: 5 | B15: Robot V01AR11 clamps close | C15: UQ2.1 UQ2.2 UQ2.3 UQ2.4 | E15: 1 | F15: =F14+E15 -> 5.25 | IP15: 3
A16: 6 | B16: Robot V01AR11 moves clear | E16: 1 | F16: 6.25 | IP16: 4
A17: 7 | B17: Robot V01AR11 Rotate 180°. | E17: 3 | F17: 9.25 | IP17: 4
A18: 8 | B18: Robot V01AR11 moves to drop in 040-PT1/2 | E18: 3 | F18: 12.25 | IP18: 4
A19: 9 | B19: Robot V01AR11 clamps open | C19: UQ2.1 UQ2.2 UQ2.3 UQ2.4 | E19: 1 | F19: 13.25 | IP19: 3
A20: 10 | B20: Robot V01AR11 Shot pins retract | C20: UQ1.1 UQ1.2 | E20: 1 | F20: 14.25 | IP20: 3
A21: 11 | B21: Robot V01AR11 moves clear RTH | E21: 3 | F21: 17.25 | IP21: 4
A22: 12 | B22: Op2 walks to Holding fixture | D22: 4 | E22: 2 | F22: 19.25 | IP22: 2
A23: 13 | B23: Op2 obtains LH RAIL asm | E23: 4.2 | F23: 23.45 | IP23: 2
A24: 14 | B24: Op2 walks to part bin | D24: 12 | E24: 3.6 | F24: 27.05 | IP24: 2
A25: 15 | B25: Op2 places asm into part bin | E25: 3 | F25: 30.05 | IP25: 2
A26: 16 | B26: Op2 walks to Holding fixture | D26: 12 | E26: 3.6 | F26: 33.65 | IP26: 2
A27: 17 | B27: Op2 obtains RH RAIL asm | E27: 4.2 | F27: 37.85 | IP27: 2
A28: 18 | B28: Op2 walks to palm button | D28: 8 | E28: 2.4 | F28: 40.25 | IP28: 2
A29: 19 | B29: Op2 press palm button | E29: 1 | F29: 41.25 | IP29: 2
A30: 20 | B30: Op2 walks to part bin | D30: 12 | E30: 3.6 | F30: =+E30 -> 3.6 | IP30: 2
A31: 21 | B31: Op2 places asm into part bin | E31: 3 | F31: 6.6 | IP31: 2
A32: 22 | B32: Robot V01AR11 Waits | E32: 64.75 | F32: =F21+E32 -> 82 | IP32: 5
A33: 23 | B33: OPER UNLOAD XMBR | IP33: 2
A34: 24 | B34: Robot V01AR11 moves to pick 030-T2 | E34: 3 | F34: =E34 +F32 -> 85 | IP34: 4
A35: 25 | B35: Robot V01AR11 clamps close | C35: UQ3.1 UQ3.2 UQ3.3 | E35: 1 | F35: =F34+E35 -> 86 | IP35: 3
A36: 26 | B36: Robot V01AR11 moves clear | E36: 1 | F36: =F35+E36 -> 87 | IP36: 4
A37: 27 | B37: Robot V01AR11 Rotate 180°. | E37: 3 | F37: 90 | IP37: 4
A38: 28 | B38: Robot V01AR11 moves to drop 040-PP1 | E38: 3 | F38: 93 | IP38: 4
A39: 29 | B39: 040-PP1 Z-clamps close | C39: UQ1.1 UQ1.2 UQ1.3 UQ 1.4 | E39: 1 | F39: 94 | IP39: 3
A40: 30 | B40: Robot V01AR11 clamps open | C40: UQ3.1 UQ3.2 UQ3.3 | E40: 1 | F40: 95 | IP40: 3
A41: 31 | B41: Robot V01AR11 moves clear RTH | E41: 3 | F41: 98 | IP41: 4
A42: 32 | B42: 040-PP1 advance units | C42: C101 C102 | E42: 1.5 | F42: 99.5 | IP42: 3
A43: 33 | B43: 040-PP1 retract units | C43: C101 C102 | E43: 3 | F43: 102.5 | IP43: 3
A44: 34 | B44: 040-PP1 center units | C44: C101 C102 | E44: 2.5 | F44: 105 | IP44: 3
A45: 35 | B45: 040-PP1 Clamps open | C45: UQ1.1 UQ1.2 UQ1.3 UQ 1.4 | E45: 1 | F45: 106 | IP45: 3
A46: 36 | B46: Op2 walks into fixture | D46: 6 | E46: 1.8 | F46: 107.8 | IP46: 2
A47: 37 | B47: Op2 obtains asm X-MEMBER | E47: 2.4 | F47: 110.2 | IP47: 2
A48: 38 | B48: Op2 walks to palm button | D48: 6 | E48: 1.8 | F48: 112 | IP48: 2
A49: 39 | B49: Op2 presses palm button | E49: 1 | F49: 113 | IP49: 2
A50: 40 | B50: Op2 walks to part bin | D50: 6 | E50: 1.8 | F50: =E50 -> 1.8 | IP50: 2
A51: 41 | B51: Op2 places asm into part bin | E51: 3 | F51: 4.8 | IP51: 2
IP52: 2
IQ54: 2
B55: Total Cycle Time | F55: =MAX(F13:F54) -> 113
B56: Estimated Walk Total | D56: =SUM(D13:D55) -> 66 | IQ56: 2
B57: Jobs Per Hour | F57: =SUM(3600/F55) -> 31.85840708

Sheet Utilization
D8: Robot / Operator Utilization Matrix
A10: Customer: | B10: Volvo
A12: Program: | B12: P6700
A14: Commodity: | B14: Door Ring & Floor Members Sub 17JPH & 20JPH
A16: Over Cycle
B17: Station # | C17: Robot / Operator # | D17: System Cycle Time | E17: Proposed Cycle Time | F17: Utilization
B18: 5 | C18: OP1 | D18: 212 | E18: 132.9 | F18: =E18/D18 -> 0.6268867925 | G18: Flr Members
B19: 5 | C19: R1 | D19: 212 | E19: 150 | F19: 0.7075471698 | G19: Flr Members
B20: 5 | C20: R2 | D20: 212 | E20: 150 | F20: 0.7075471698 | G20: Flr Members
B21: 10 | C21: R3 | D21: 212 | E21: 194 | F21: 0.9150943396 | G21: Flr Members
B22: 20 | C22: R5 | D22: 212 | E22: 182 | F22: =E22/D22 -> 0.858490566 | G22: Flr Members
B23: 25 | C23: R6 | D23: 212 | E23: 159 | F23: 0.75 | G23: Flr Members
B24: 25 | C24: R8 | D24: 212 | E24: 159 | F24: 0.75 | G24: Flr Members
B25: 25 | C25: Op2 | D25: 212 | E25: 40 | F25: 0.1886792453 | G25: Flr Members
B26: 5 | C26: OP1 | D26: 180 | E26: 132.9 | F26: 0.7383333333 | G26: Flr Members
B27: 5 | C27: R1 | D27: 180 | E27: 150 | F27: 0.8333333333 | G27: Flr Members
B28: 5 | C28: R2 | D28: 180 | E28: 150 | F28: 0.8333333333 | G28: Flr Members
B29: 10 | C29: R3 | D29: 180 | E29: 164 | F29: 0.9111111111 | G29: Flr Members
B30: 15 | C30: R4 | D30: 180 | E30: 63 | F30: =E30/D30 -> 0.35 | G30: Flr Members
B31: 20 | C31: R5 | D31: 180 | E31: 152 | F31: =E31/D31 -> 0.8444444444 | G31: Flr Members
B32: 25 | C32: R6 | D32: 180 | E32: 109.4 | F32: 0.6077777778 | G32: Flr Members
B33: 25 | C33: R7 | D33: 180 | E33: 109.4 | F33: =E33/D33 -> 0.6077777778 | G33: Flr Members
B34: 25 | C34: R8 | D34: 180 | E34: 111.6 | F34: 0.62 | G34: Flr Members
B35: 25 | C35: Op2 | D35: 180 | E35: 40 | F35: 0.2222222222 | G35: Flr Members

Sheet Quick Time 1
A1: =Cover!B13 -> Volvo | B1: =Cover!B15 -> 2023 P6700 | C1: =RIGHT(CELL("filename",D2),LEN(CELL("filename",D2))-FIND("]",CELL("filename",D2))) -> Quick Time 1
A2: =Cover!B17 -> Floor Members subs (17 JPH) | B2: =Cover!B25 -> 212 | D2: =Cover!B21 -> 10214-Q16225
A4: Operator obtain small parts | B4: How many | C4: 1 | D4: =1.8*C4 -> 1.8 | F4: Geo welds = | G4: 4 | H4: secs. Per weld
A5: Operator load small parts | B5: How many | C5: 1 | D5: =1.8*C5 -> 1.8
A6: Operator place small part (no precision) | B6: How many | C6: 1 | D6: =0.5*C6 -> 0.5 | F6: Respot welds = | G6: 3.5 | H6: secs. Per weld
A7: Operator obtain medium parts | B7: How many | C7: 1 | D7: =2.4*C7 -> 2.4
A8: Operator load medium parts | B8: How many | C8: 1 | D8: =3*C8 -> 3
A9: Operator place medium part (no precision) | B9: How many | C9: 1 | D9: =1*C9 -> 1 | F9: MIG welds = | G9: 25 | H9: inches per min.
A10: Operator obtain large parts | B10: How many | C10: 1 | D10: =4.2*C10 -> 4.2
A11: Operator load large parts | B11: How many | C11: 1 | D11: =4.2*C11 -> 4.2
A12: Operator place large part (no precision) | B12: How many | C12: 1 | D12: =1.8*C12 -> 1.8 | F12: Laser brazing = | G12: 130 | H12: inches per min.
A13: Operator total walk | B13: Total in feet | C13: 12 | D13: =0.3*C13 -> 3.6
A14: Operator hit P.B. | C14: 1 | D14: =1*C14 -> 1 | F14: Note: Range of 95 inches/min to max speed of 173 inches/min. To achieve higher speeds 6 KW power unit needs to be used. 130 inches/min is an average.
A15: Operator Load Assist- load/unload part to fixt or rack(includes lwr, open/close clp and raise) | B15: # of loads /unloads | C15: 1 | D15: =C15*12.5 -> 12.5
A16: Operator walk with load assist | B16: Total in feet | C16: 3 | D16: =0.5*C16 -> 1.5
A17: Fixture - Clamp/Gripper close | B17: # of close | D17: =1*C17 -> 0
A18: Fixture - Clamp /Gripper open | B18: # of open | D18: =1*C18 -> 0 | F18: Adhesive/Seal = | G18: 300 | H18: mm per sec.
A19: Fixture - Suction Cup vacuum on | B19: # of vacuum on | D19: =1*C19 -> 0
A20: Fixture - Suction Cup vacuum off | B20: # of vacuum off | D20: =1*C20 -> 0
A21: Fixture - Manual Clamp close | B21: # of close | D21: =1.8*C21 -> 0
A22: Fixture - Manual Clamp open | B22: # of open | D22: =2.3*C22 -> 0
A23: Fixture - Shot pin extend | B23: # of extends | D23: =1*C23 -> 0
A24: Fixture - Shot pin retract | B24: # of retracts | D24: =1*C24 -> 0
A25: Fixture - Slide extend | B25: # of extends | D25: =2*C25 -> 0
A26: Fixture - Slide retract | B26: # of retracts | D26: =2*C26 -> 0
A27: Fixture - Pivot close | B27: # of close | D27: =2*C27 -> 0
A28: Fixture - Pivot open | B28: # of open | D28: =2*C28 -> 0
A29: Fixture - Trunnion rotates 180 | B29: # of rotates | C29: 1 | D29: =4*C29 -> 4
A30: Fixture - Turn Table rotates 180 | B30: # of rotates | C30: 1 | D30: =6*C30 -> 6
A31: Robot pick part | B31: # of picks | C31: 0 | D31: =IF(C31=0,0, IF(C31=1, 6, IF(C31=2, 10, IF(C31=3, 14, IF(C31=4, 18))))) -> 0
A32: Robot rotate 45 | B32: # of rotates | D32: =1*C32 -> 0
A33: Robot rotate 90 | B33: # of rotates | D33: =2*C33 -> 0
A34: Robot rotate 180 | B34: # of rotates | D34: =3*C34 -> 0
A35: Robot rotate 270 | B35: # of rotates | D35: =4*C35 -> 0
A36: Robot place part | B36: # of places | C36: 0 | D36: =IF(C36=0,0, IF(C36=1, 6, IF(C36=2, 10, IF(C36=3, 14, IF(C36=4, 18))))) -> 0
A37: Robot moves on 7th axis | B37: Distance (# foot) | C37: 12 | D37: =0.3*C37 -> 3.6
A38: Robot rotate to home | B38: # of rotates | D38: =2*C38 -> 0
A39: Robot delay | B39: # of delays | D39: =1*C39 -> 0
A40: Robot date scribe | B40: # of date scribe | D40: =6*C40 -> 0
A41: Robot check tree (nuts & studs) | B41: # of check positions | D41: =2*C41 -> 0
A42: Robot changes EOAT (drop 1 and pick 1) | B42: # of changes | D42: =C42*15 -> 0
A43: Weld robot in | D43: =1.5*C43 -> 0
A44: Weld robot welds (GEO) | B44: # of welds -GEO- | D44: =G4*C44 -> 0
A45: Weld robot welds (Respot) | B45: # of welds -Respot- | D45: =G6*C45 -> 0
A46: Weld robot out | D46: =1.5*C46 -> 0
A47: Mig robot in | D47: =1.5*C47 -> 0
A48: Mig robot weld | B48: # of welds | C48: 8 | D48: =2.25*C48 -> 18
A49: Mig robot weld | B49: Weld Length (mm) | C49: 596 | D49: =C49/(G9*25.4/60) -> 56.31496063
A50: Mig robot out | D50: =1.5*C50 -> 0
A51: Laser brazing robot in | D51: =1.5*C51 -> 0
A52: Seam detection at start of process | B52: Weld Length (mm) | D52: =2*C52 -> 0
A53: Laser brazing robot welds | B53: Weld Length (mm) | D53: =C53/(G12*25.4/60) -> 0
A54: Laser brazing robot out | D54: =1.5*C54 -> 0
A55: Adh/Seal robot in | D55: =1.5*C55 -> 0
A56: Adh/Seal robot | B56: # of Beads | C56: 44 | D56: =1.25*C56 -> 55
A57: Adh/Seal robot | B57: Adh/Seal Length (mm) | D57: =C57/G18 -> 0
A58: Adh/Seal robot out | D58: =1.5*C58 -> 0
A59: Proj/clinch nut/stud Weld robot in | D59: =1.5*C59 -> 0
A60: Proj/clinch nut/stud Weld robot welds | B60: # of welds | D60: =5.5*C60 -> 0
A61: Proj/clinch nut/stud Weld robot out | D61: =1.5*C61 -> 0
A62: DA studs Weld robot in | D62: =1.5*C62 -> 0
A63: DA studs Weld robot welds | B63: # of DA welds | D63: =3.5*C63 -> 0
A64: DA studs Weld robot out | D64: =1.5*C64 -> 0
A65: FDS robot in | D65: =1.5*C65 -> 0
A66: FDS robot Screws | B66: # of screws | D66: =C66*6 -> 0
A67: FDS robot out | D67: =1.5*C67 -> 0
A68: SPR robot in | D68: =1.5*C68 -> 0
A69: SPR robot Rivets | B69: # of Rivets | D69: =C69*4.5 -> 0
A70: SPR robot out | D70: =1.5*C70 -> 0
A71: Manual Weld - Operator obtains weld gun (medium) | D71: =C71*4 -> 0
A72: Manual Weld - Operator obtains weld gun (large) | D72: =5.5*C72 -> 0
A73: Manual Weld - Operator repositions weld gun (<6") | D73: =0.9*C73 -> 0
A74: Manual Weld - Operator repositions weld gun (>6",<24") | D74: =1.7*C74 -> 0
A75: Manual Weld - Operator repositions weld gun (>24") | D75: =2.5*C75 -> 0
A76: Manual Weld - Operator repositions weld gun through access hole | D76: =1.7*C76 -> 0
A77: Manual Weld - Operator rotates weld gun | D77: =1.7*C77 -> 0
A78: Manual Weld - Operator returns weld gun to hook | D78: =2*C78 -> 0
A79: Manual Weld - Operator releases weld gun | D79: =0.5*C79 -> 0
A80: Manual Weld - Operator welds - 1st in a group or only (simple) | D80: =2.6*C80 -> 0
A81: Manual Weld - Operator welds - each additional weld (simple) | D81: =0.8*C81 -> 0
A82: Manual Weld - Operator welds - 1st in a group or only (complex) | D82: =3.1*C82 -> 0
A83: Manual Weld - Operator welds - each additional weld (complex) | D83: =1.3*C83 -> 0
A84: Manual Weld - Operator welds - 1st in a group or only (heavy gauge) | D84: =3.4*C84 -> 0
A85: Manual Weld - Operator welds - each additional weld (heavy gauge) | D85: =1.6*C85 -> 0
A89: TOTAL ESTIMATED TIME | D89: =SUM(D4:D88) -> 182.2149606
A90: TOTAL AVAILABLE TIME | D90: =Cover!B25 -> 212
A91: DIFFERENCE | D91: =D90-D89 -> 29.78503937

Sheet Detail Time 1
B2: Man and Machine Motions | AB2: Operator | CR2: =Cover!B13 -> Volvo
B3: PRELIMINARY TIMING ESTIMATES | AB3: Machine | CR3: =Cover!B15 -> 2023 P6700
AB4: Robot | CR4: =Cover!B17 -> Floor Members subs (17 JPH)
F5: =Q8-AP8 -> 212 | AB5: Operator Wait | CR5: =Cover!B19 -> NPV
A6: TOOL DESCRIPTION: | E6: Hours | F6: REQUIRED | Q6: TOTAL TIME | AP6: TOTAL TIME | BO6: TOTAL MILES WALKED | DC6: ROBOT | DW6: OPERATOR TIME | GE6: MACHINE
A7: =RIGHT(CELL("filename",D2),LEN(CELL("filename",D2))-FIND("]",CELL("filename",D2))) -> Detail Time 1 | E7: /Shift | F7: JPH | Q7: AVAILABLE | AP7: UTILIZED | BO7: APPROX. 8 HR SHIFT | DC7: TIME | DW7: WORK | EQ7: WAIT | FK7: % UTIL. | GE7: TIME
E8: 7.4 | F8: =3600/Q8 -> 16.98113208 | Q8: =Cover!B25 -> 212 | AP8: 0 | BO8: N/A | DC8: N/A | DW8: N/A | EQ8: N/A | FK8: N/A | GE8: N/A
A9: step | B9: STATION | C9: Cyl. | D9: WALK | F9: RUN | CW9: CYCLE TIME (seconds)
A10: # | B10: DESCRIPTION | C10: Num. | D10: DIST. | E10: SEC | F10: SEC | G10: 3 | Q10: =2*$G$10 -> 6 | AA10: =3*$G$10 -> 9 | AK10: =4*$G$10 -> 12 | AU10: =5*$G$10 -> 15 | BE10: =6*$G$10 -> 18 | BO10: =7*$G$10 -> 21 | BY10: =8*$G$10 -> 24 | CI10: =9*$G$10 -> 27 | CS10: =10*$G$10 -> 30 | DC10: =11*$G$10 -> 33 | DM10: =12*$G$10 -> 36 | DW10: =13*$G$10 -> 39 | EG10: =14*$G$10 -> 42 | EQ10: =15*$G$10 -> 45 | FA10: =16*$G$10 -> 48 | FK10: =17*$G$10 -> 51 | FU10: =18*$G$10 -> 54 | GE10: =19*$G$10 -> 57 | GO10: =20*$G$10 -> 60
A11: 1 | F11: =E11 -> 0 | IQ11: 2
A12: =A11+1 -> 2 | F12: =E12+F11 -> 0 | DY12: 2 | IQ12: 2
A13: =A12+1 -> 3 | F13: =E13+F12 -> 0 | DY13: 2 | IQ13: 2
A14: 4 | F14: 0 | DY14: 2 | IQ14: 4
A15: 5 | F15: 0 | IQ15: 4
A16: 6 | F16: 0 | IQ16: 3
A17: 7 | F17: 0
A18: 8 | F18: 0
A19: 9 | F19: 0
A20: 10 | F20: 0
A21: 11 | F21: 0
A22: 12 | F22: 0
A23: 13 | F23: 0
A24: 14 | F24: 0
A25: 15 | F25: 0
A26: 16 | F26: 0
A27: 17 | F27: 0
A28: 18 | F28: 0
IQ36: 2
B37: Total Cycle Time | F37: =MAX(F11:F36) -> 0
B38: Estimated Walk Total | D38: =SUM(D11:D37) -> 0 | IQ38: 2
B39: Jobs Per Hour | F39: =SUM(3600/F37) -> 

Sheet timedata
B1: Robot Material Handling | C1: Secs | E1: Welding Robots Only | F1: Secs | H1: Handling parts | I1: Obtain | K1: Select | M1: Load | O1: Place | Q1: Manual Tools | T1: Fasteners | U1: Secs | W1: Very Small | X1: Small | Y1: Medium | Z1: Large | AA1: Very Large | AD1: Part Sizes
A2: 1 | B2: Logic delay | C2: 1 | D2: 1 | E2: Rotates approx. 45 degrees to | F2: 3 | H2: Very Small Part (No Walk) | I2: 0.7 | J2: 0.2 | K2: 0.7 | L2: 0.2 | M2: 1.1 | O2: 0.5 | Q2: Note that lines between jobs contain "blanks" (not empty) to make this list work | T2: Obtain power tool (and release after using) | U2: 4.5 | W2: Bolt | X2: Anchor | Y2: A-pillar | Z2: Bodyside | AA2: Cab Back | AD2: A-pillar | AE2: Medium
A3: =A2+1 -> 2 | B3: Rotates approx. 45 degrees to | C3: 3 | D3: =D2+1 -> 2 | E3: Rotates approx. 90 degrees to | F3: 4 | H3: Small Part | I3: 3.5 | J3: 0.9 | K3: 3.5 | L3: 0.9 | M3: 1.1 | O3: 0.5 | Q3: Tool Handling (nut runners) / fastener securing | T3: Obtain power tool (and release after using) if greater than 24" to reach fastener | U3: 5.3 | W3: J-clip | X3: Applicator | Y3: B-pillar | Z3: Dash Panel | AA3: Floor-pan | AD3: Anchor | AE3: Small
A4: 3 | B4: Rotates approx. 90 degrees to | C4: 4 | D4: 3 | E4: Rotates pounce to first weld | F4: 2 | H4: Medium Part | I4: 4.4 | K4: 5.3 | M4: 1.1 | O4: 1 | T4: Insert margin or flushness gauge into gap | U4: 1 | W4: J-nut | X4: Bar | Y4: Cowl side | Z4: Deck-lid | AA4: Rear Floor Pan | AD4: Applicator | AE4: Small
A5: 4 | B5: Rotates approx. 180 degrees to | C5: 6 | D5: 4 | E5: Articulate weld gun through welds on part in fixture | F5: 3 | H5: Large Part | I5: 5.4 | K5: 6.3 | M5: 2.7 | O5: 1.8 | Q5: Open / Close doors, decklids, or hoods | T5: Hand start nut, screw, or bolt | U5: 3 | W5: Locator | X5: Brace | Y5: Cowl top | Z5: Door | AA5: Underbody | AD5: B-pillar | AE5: Medium
A6: 5 | B6: Clamps on end effector extend, securing | C6: 1 | D6: 5 | E6: Repositions to weld in additional plane | F6: 3 | H6: Large Special | I6: 6.7 | K6: 7.6 | M6: 2.7 | O6: 1.8 | T6: Load nut, screw, or bolt to power tool | U6: 1.2 | W6: Nut | X6: Bracket | Y6: C-pillar | Z6: Door-opening-Panel | AD6: Bar | AE6: Small
A7: 6 | B7: Clamps on end effector retract, releasing | C7: 1 | D7: 6 | E7: Moves clear of fixture clamps | F7: 1.5 | H7: Very Large Part * V0 | I7: 17.5 | J7: V0 | K7: 18.4 | L7: V0 | M7: 1.7 | N7: V0 | O7: 0.5 | P7: V0 | Q7: Fit Closure Panels | T7: Secure nut, screw, or bolt using power tool | W7: Nut and bolt assembly | X7: Daub | Y7: D-pillar | Z7: Fender | AD7: Bodyside | AE7: Large
A8: 7 | B8: Articulates part through welds at PED Weld Stand | C8: 3 | D8: 7 | E8: Rotates clear of fixture | F8: 2.5 | H8: Very Large Part * F0 | I8: 12 | J8: F0 | K8: 12.9 | L8: F0 | M8: 1.7 | N8: F0 | O8: 0.5 | P8: F0 | W8: Nut and Washer Assembly | X8: Door-hinge | Y8: Front floor pan crossmember | Z8: Floor | AD8: Bolt | AE8: Very Small
A9: 8 | B9: Rotates clear of fixture | C9: 3 | D9: 8 | E9: Rotate home to pounce | F9: 2 | H9: Very Large Part * N0 | I9: 15.5 | J9: N0 | K9: 16.4 | L9: N0 | M9: 2 | N9: N0 | O9: 0.5 | P9: N0 | Q9: Use portable fixtures | T9: Tool Motor Type / per fastener times | U9: Torque | V9: Secs | W9: Palm button | X9: Fastener | Y9: Grille Opening Reinforcement | Z9: Frame rail | AD9: Brace | AE9: Small
A10: 9 | B10: Rotate to home | C10: 3 | D10: 9 | E10: Logic delay | F10: 1 | H10: Very Large Part * H0 | I10: 11.6 | J10: H0 | K10: 12.5 | L10: H0 | M10: 2 | N10: H0 | O10: 0.5 | P10: H0 | T10: N01-N05 | U10: 0.70-2.50 | V10: 2.5 | W10: Pot-rivet | X10: Header | Y10: Liftgate | Z10: Front Fender Body | AD10: Bracket | AE10: Small
A11: 10 | B11: Rotates to Pounce | C11: 2 | H11: Very Large Part * V1 | I11: 18.8 | J11: V1 | K11: 19.7 | L11: V1 | M11: 1.7 | N11: V1 | O11: 0.5 | P11: V1 | Q11: Manual clamping | T11: N1-N8 | U11: 2.51-20.00 | V11: 2.5 | W11: Push pin | X11: Nut and Plate assembly | Y11: Package Tray | Z11: Hood | AD11: C-pillar | AE11: Medium
A12: 11 | B12: Articulate and pick second part | C12: 5 | H12: Very Large Part * F1 | I12: 13.3 | J12: F1 | K12: 14.2 | L12: F1 | M12: 1.7 | N12: F1 | O12: 0.5 | P12: F1 | T12: N9-N11 | U12: 20.1-40.0 | V12: 4 | W12: Rivet | X12: Reinforcement | Y12: Pillar | Z12: Lower back panel s/a | AD12: Cab Back | AE12: Very Large
A13: 12 | B13: Articulate and set second part | C13: 5 | H13: Very Large Part * N1 | I13: 14.7 | J13: N1 | K13: 15.6 | L13: N1 | M13: 2 | N13: N1 | O13: 0.5 | P13: N1 | T13: N12-N14 | U13: 40.1-90.0 | V13: 5.9 | W13: Rivnut | X13: Teleauto ticket | Y13: Plenum | Z13: Quarter panel | AD13: Cowl side | AE13: Medium
H14: Very Large Part * H1 | I14: 10.9 | J14: H1 | K14: 11.8 | L14: H1 | M14: 2 | N14: H1 | O14: 0.5 | P14: H1 | T14: N15 | U14: 90.1-115.0 | V14: 6.6 | W14: Screw | Y14: Roof Bow | Z14: Roof | AD14: Cowl top | AE14: Medium
T15: N16 | U15: 115.1-150.0 | V15: 7.9 | W15: Solder | Y15: Roof Rail | Z15: Tailgate | AD15: D-pillar | AE15: Medium
T16: N17-N22 | U16: 150.1-700.0 | V16: 8.5 | W16: Stud | Z16: Underbody Reinforcement | AD16: Dash Panel | AE16: Large
W17: Stud bolt | Z17: Wheelhouse inner | AD17: Daub | AE17: Small
W18: Tab | Z18: Wheelhouse outer | AD18: Deck-lid | AE18: Large
W19: U-nut | Z19: Wheelhouse panel | AD19: Door | AE19: Large
B20: Other Robot Operations | C20: Secs | E20: Palm Buttons | F20: Secs | H20: Unload/Transfer/Position | J20: Unload | K20: Transfer | L20: Position | Q20: Portable Fixtures | T20: Fit Door / Hood / Decklids | W20: Weld | AD20: Door-hinge | AE20: Small
A21: =A20+1 -> 1 | B21: Rotates pounce to start position | C21: 2 | E21: Step to pedestal, press and release 2 palm buttons simultaneously and step away from pedestal | F21: 2.9 | H21: Very Small Part | J21: 1.7 | K21: 3.7 | L21: 0.8 | Q21: Obtain SMALL fixture and postion to body panel | R21: 4.4 | T21: Fit Door | U21: 17.8 | W21: Weld bolt | AD21: Door-opening-Panel | AE21: Large
A22: 2 | B22: Apply mastic daubs at PED stand | C22: 3 | E22: Press palm button located on fixture requiring one hand to activate | F22: 0.6 | H22: Small Part | J22: 1.7 | K22: 4 | L22: 0.8 | Q22: Obtain MEDIUM fixture and postion to body panel | R22: 5.5 | T22: Fit Decklid | U22: 21.9 | W22: Weld nut | AD22: Fastener | AE22: Small
A23: 3 | B23: Apply mastic bead at PED stand | C23: 275 | E23: Press and hold palm button (hold dependent on machine cycle time) | F23: 0.6 | H23: Medium Part | J23: 1.7 | K23: 5.2 | L23: 1.1 | Q23: Obtain LARGE fixture and postion to body panel | R23: 7.7 | T23: Fit Hood (assume same as decklid) | U23: 21.9 | AD23: Fender | AE23: Large
A24: 4 | B24: Apply adhesive at PED stand | C24: 275 | E24: Depress foot pedal | F24: 0.4 | H24: Large Part | J24: 2.6 | K24: 8.3 | L24: 2.3 | Q24: Pull detail locking in | R24: 1.9 | AD24: Floor | AE24: Large
A25: 5 | B25: Apply sealer at PED stand | C25: 275 | E25: Turn selector knob | F25: 1.2 | H25: Very Large Part * | I25: V | J25: 1.7 | K25: 10.4 | L25: 1.4 | Q25: Turn detail pin | R25: 1.2 | AD25: Floor-pan | AE25: Very Large
A26: 6 | B26: Repostions to another area on part | C26: 2 | E26: Press toggle switch | F26: 0.6 | H26: Very Large Part * | I26: F | J26: 1.7 | K26: 7.2 | L26: 1.4 | Q26: Press control button on fixture | R26: 0.5 | AD26: Frame rail | AE26: Large
A27: 7 | B27: Apply mastic bead at fixture | C27: 275 | E27: Press keypad button (when extra force not required to press) | F27: 0.5 | H27: Very Large Part * | I27: N | J27: 1.7 | K27: 9.2 | L27: 1.4 | Q27: Rotate fixture on bench | R27: 3.4 | AD27: Front floor pan crossmember | AE27: Medium
A28: 8 | B28: Apply adhesive at fixture | C28: 275 | E28: Firmly press keypad button (when button requires extra force) | F28: 1.2 | H28: Very Large Part * | I28: H | J28: 1.7 | K28: 9.2 | L28: 1.4 | Q28: Remove SMALL fixture after being unclamped from body | R28: 1.4 | AD28: Front Fender Body | AE28: Large
A29: 9 | B29: Apply sealer at fixture | C29: 275 | Q29: Remove MEDIUM fixture after being unclamped from body | R29: 3.1 | AD29: Grille Opening Reinforcement | AE29: Medium
A30: 10 | B30: Apply CLINCH nuts | C30: 4.5 | Q30: Remove LARGE fixture after being unclamped from body | R30: 4.4 | AD30: Header | AE30: Small
A31: 11 | B31: Apply WELD nuts | C31: 5.5 | AD31: Hood | AE31: Large
A32: 12 | B32: Applies date stamp | C32: 2 | AD32: J-clip | AE32: Very Small
AD33: J-nut | AE33: Very Small
AD34: Liftgate | AE34: Medium
AD35: Locator | AE35: Very Small
AD36: Lower back panel s/a | AE36: Large
AD37: Nut | AE37: Very Small
AD38: Nut and bolt assembly | AE38: Very Small
B39: Part Handling | AD39: Nut and Plate assembly | AE39: Small
B40: Note that lines between jobs contain "blanks" (not empty) to make this list work | E40: Walk | F40: Sec/ft | H40: Hoists | I40: Type | J40: 0 Hooks | K40: 1 Hook | L40: 2 Hooks | Q40: Open Close Doors, Decklids, Hoods | T40: Clamping | W40: GEO Fixtures | AD40: Nut and Washer Assembly | AE40: Very Small
B41: Walk / Carry Parts | E41: Standard walk with any other than large part | F41: 0.3 | H41: Obtain and engage part | I41: V | J41: 9.7 | K41: 11 | L41: 12.8 | Q41: Open Door | R41: 2.3 | T41: Close manually operated fixure clamp | U41: 11.4 | W41: fixture clamps close | X41: 1 | AD41: Package Tray | AE41: Medium
E42: Any walk with very large object or 2 operators walking in combination | F42: 0.4 | H42: Obtain and engage part | I42: F | J42: 7.4 | K42: 8.6 | L42: 10.4 | Q42: Open Hood | R42: 3.2 | T42: Open manually operated fixture clamp | U42: 2.3 | W42: fixture clamps open | X42: 1 | AD42: Palm button | AE42: Very Small
B43: Obtain / Select/ Load / Place Parts | E43: Unrestricted walk over a long distance such in a warehouse | F43: 0.2 | H43: Obtain and engage part | I43: N | J43: 9.5 | K43: 9.3 | L43: 11.1 | Q43: Open Decklid | R43: 2.1 | T43: Apply hand clamp | U43: 3.8 | W43: Shot Pins Extend | X43: 1 | AD43: Pillar | AE43: Medium
E44: Standard walk without part | F44: 0.3 | H44: Obtain and engage part | I44: H | J44: 7.7 | K44: 9.1 | L44: 10.9 | Q44: Close Door | R44: 2.1 | T44: Remove hand clamp | U44: 3.1 | W44: Shot Pins retract | X44: 1 | AD44: Plenum | AE44: Medium
B45: Unload / Transfer / Position Part | H45: Disengage from part and put aside | I45: V | J45: 4.6 | K45: 5.8 | L45: 7.5 | Q45: Close Hood | R45: 2.7 | T45: Enter vehicle | U45: 6.1 | W45: Slides extend | X45: 2 | AD45: Pot-rivet | AE45: Very Small
H46: Disengage from part and put aside | I46: F | J46: 5.2 | K46: 6.3 | L46: 8 | Q46: Close Decklid | R46: 2.1 | T46: Exit vehicle | U46: 2.2 | W46: Slides retract | X46: 2 | AD46: Push pin | AE46: Very Small
B47: Palm Buttons | H47: Disengage from part and put aside | I47: N | J47: 2.2 | K47: 3.4 | L47: 5 | Q47: Prop Open Hood | R47: 7.7 | T47: Sit in chair or on stool | U47: 3.9 | W47: Cylinders extend | X47: 1 | AD47: Quarter panel | AE47: Large
H48: Disengage from part and put aside | I48: H | J48: 6.1 | K48: 7.2 | L48: 8.9 | Q48: Remove prop rod (slave) from hood | R48: 1.4 | W48: Cylinders retract | X48: 1 | AD48: Rear Floor Pan | AE48: Very Large
B49: Handling with Hoists | Q49: Prop Open Decklid | R49: 7.7 | W49: Trunnion Rotate | X49: 4 | AD49: Reinforcement | AE49: Small
Q50: Remove prop rod (slave) from decklid | R50: 1.4 | W50: Table Rotate | X50: 4 | AD50: Rivet | AE50: Very Small
B51: Typical Part Sizes | AD51: Rivnut | AE51: Very Small
AD52: Roof | AE52: Large
AD53: Roof Bow | AE53: Medium
AD54: Roof Rail | AE54: Medium
AD55: Screw | AE55: Very Small
AD56: Solder | AE56: Very Small
AD57: Stud | AE57: Very Small
AD58: Stud bolt | AE58: Very Small
AD59: Tab | AE59: Very Small
AD60: Tailgate | AE60: Large
AD61: Teleauto ticket | AE61: Small
AD62: U-nut | AE62: Very Small
AD63: Underbody | AE63: Very Large
AD64: Underbody Reinforcement | AE64: Large
AD65: Weld | AE65: Very Small
AD66: Weld bolt | AE66: Very Small
AD67: Weld nut | AE67: Very Small
AD68: Wheelhouse inner | AE68: Large
AD69: Wheelhouse outer | AE69: Large
AD70: Wheelhouse panel | AE70: Large
